bitfinex-derivatives/quotes_BNBF0:USTF0_20250708
["timestamp","ask_amount","ask_price","bid_price","bid_amount"]
[1751936439742,2.47791886,661.02,660.59,1.742]
[1751936439945,2.47791886,661.01,660.59,1.742]
[1751936440147,2.47791886,661.0,660.59,1.742]
[1751936440346,2.47791886,660.99,660.59,1.742]
[1751936440544,2.47791886,660.98,660.59,1.742]
[1751936440745,2.47791886,660.97,660.59,1.742]
[1751936440944,2.47791886,660.96,660.59,1.742]
[1751936441147,2.47791886,660.95,660.59,1.742]
[1751936441345,2.47791886,660.94,660.59,1.742]
[1751936441649,1.02833858,661.17,660.59,1.742]
[1751936441948,1.02833858,661.16,660.59,1.742]
[1751936442145,1.02833858,661.15,660.59,1.742]
[1751936442349,1.02833858,661.14,660.59,1.742]
[1751936442548,3.19112616,661.16,660.59,1.742]
[1751936442549,1.02833858,661.13,660.59,1.742]
[1751936442846,1.02833858,661.12,660.59,1.742]
[1751936443045,1.02833858,661.11,660.59,1.742]
[1751936443246,1.02833858,661.1,660.59,1.742]
[1751936443445,1.02833858,661.09,660.59,1.742]
[1751936443749,1.02828175,661.08,660.59,1.742]
[1751936443945,1.02828175,661.07,660.59,1.742]
[1751936444247,1.02828175,661.06,660.59,1.742]
[1751936444450,1.02828175,661.05,660.59,1.742]
[1751936444649,1.02828175,661.04,660.59,1.742]
[1751936444844,1.02828175,661.03,660.59,1.742]
[1751936445047,1.02828175,661.02,660.59,1.742]
[1751936445245,1.02828175,661.01,660.59,1.742]
[1751936445446,1.02828175,661.0,660.59,1.742]
[1751936445647,1.02828175,660.99,660.59,1.742]
[1751936445848,1.02828175,660.98,660.59,1.742]
[1751936446148,1.02828175,660.97,660.59,1.742]
[1751936446348,1.02828175,660.96,660.59,1.742]
[1751936446553,1.02828175,660.95,660.59,1.742]
[1751936446750,1.02828175,660.94,660.59,1.742]
[1751936446954,1.02828175,660.93,660.59,1.742]
[1751936447155,1.02828175,661.18,660.59,1.742]
[1751936447351,1.02828175,661.17,660.59,1.742]
[1751936447553,1.02828175,661.16,660.59,1.742]
[1751936447754,1.02828175,661.15,660.59,1.742]
[1751936447954,1.02828175,661.14,660.59,1.742]
[1751936448152,1.02828175,661.13,660.59,1.742]
[1751936448454,1.02828175,661.12,660.59,1.742]
[1751936448652,1.02828175,661.11,660.59,1.742]
[1751936448855,1.02828175,661.1,660.59,1.742]
[1751936449054,1.02828175,661.09,660.59,1.742]
[1751936449251,1.02828175,661.08,660.59,1.742]
[1751936449454,1.02828175,661.07,660.59,1.742]
[1751936449751,1.02828175,661.06,660.59,1.742]
[1751936449953,1.02828175,661.05,660.59,1.742]
[1751936450156,1.02828175,661.04,660.59,1.742]
[1751936450358,1.02828175,661.03,660.59,1.742]
[1751936450656,1.02828175,661.02,660.59,1.742]
[1751936450860,1.02828175,661.01,660.59,1.742]
[1751936451055,1.02828175,661.0,660.59,1.742]
[1751936451256,1.02828175,660.99,660.59,1.742]
[1751936451454,1.02828175,660.98,660.59,1.742]
[1751936451654,1.02828175,660.97,660.59,1.742]
[1751936451957,1.02828175,660.96,660.59,1.742]
[1751936452157,1.02828175,661.18,660.59,1.742]
[1751936452356,1.029386,661.17,660.59,1.742]
[1751936452554,1.029386,661.16,660.59,1.742]
[1751936452752,1.029386,661.15,660.59,1.742]
[1751936452954,1.029386,661.14,660.59,1.742]
[1751936453258,1.029386,661.13,660.59,1.742]
[1751936453453,1.029386,661.12,660.59,1.742]
[1751936453655,1.029386,661.11,660.59,1.742]
[1751936453858,1.029386,661.1,660.59,1.742]
[1751936454153,1.029386,661.09,660.59,1.742]
[1751936454358,1.029386,661.08,660.59,1.742]
[1751936454556,1.029386,661.07,660.59,1.742]
[1751936454858,1.029386,661.06,660.59,1.742]
[1751936455160,1.029386,661.05,660.59,1.742]
[1751936455459,1.029386,661.04,660.59,1.742]
[1751936455655,1.029386,661.03,660.59,1.742]
[1751936455853,1.029386,661.19,660.59,1.742]
[1751936456054,1.029386,661.18,660.59,1.742]
[1751936456357,2.23979801,661.37,660.59,1.742]
[1751936456358,1.029386,661.17,660.59,1.742]
[1751936456558,1.029386,661.16,660.59,1.742]
[1751936456758,1.029386,661.15,660.59,1.742]
[1751936456959,1.029386,661.14,660.59,1.742]
[1751936457160,1.029386,661.13,660.59,1.742]
[1751936457358,1.029386,661.12,660.59,1.742]
[1751936457561,1.03098653,661.11,660.59,1.742]
[1751936457763,1.03098653,661.1,660.59,1.742]
[1751936457962,1.03098653,661.09,660.59,1.742]
[1751936458161,1.03098653,661.08,660.59,1.742]
[1751936458363,1.03141297,661.19,660.59,1.742]
[1751936458562,1.03141297,661.18,660.59,1.742]
[1751936458760,1.03141297,661.17,660.59,1.742]
[1751936458960,1.03141297,661.16,660.59,1.742]
[1751936459159,1.03141297,661.15,660.59,1.742]
[1751936459360,1.03141297,661.14,660.59,1.742]
[1751936459664,1.03141297,661.13,660.59,1.742]
[1751936459865,1.03141297,661.12,660.59,1.742]
[1751936460064,1.6950209,661.21,660.59,1.742]
[1751936460065,1.03141297,661.11,660.59,1.742]
[1751936460266,1.03141297,661.2,660.59,1.742]
[1751936460467,1.03141297,661.19,660.59,1.742]
[1751936460671,1.03141297,661.18,660.59,1.742]
[1751936460971,1.03193183,661.17,660.59,1.742]
[1751936461167,1.03193183,661.16,660.59,1.742]
[1751936461373,1.03193183,661.15,660.59,1.742]
[1751936461567,1.03193183,661.14,660.59,1.742]
[1751936461867,1.03193183,661.13,660.59,1.742]
[1751936462066,1.03193183,661.19,660.59,1.742]
[1751936462267,1.03193183,661.18,660.59,1.742]
[1751936462466,1.03193183,661.17,660.59,1.742]
[1751936462665,1.03193183,661.16,660.59,1.742]
[1751936462868,1.03193183,661.15,660.59,1.742]
[1751936463068,1.03193183,661.14,660.59,1.742]
[1751936463271,1.03193183,661.17,660.59,1.742]
[1751936463471,1.03193183,661.16,660.59,1.742]
[1751936463671,1.03193183,661.17,660.59,1.742]
[1751936463868,1.03193183,661.16,660.59,1.742]
[1751936464068,2.72695273,661.17,660.59,1.742]
[1751936464271,1.03193183,661.16,660.59,1.742]
[1751936464472,4.47725795,661.17,660.59,1.742]
[1751936464672,4.47725795,661.16,660.59,1.742]
[1751936464968,2.78223705,661.15,660.59,1.742]
[1751936465173,2.16755482,661.15,660.59,1.742]
[1751936465367,1.6950209,661.15,660.59,1.742]
[1751936466267,1.6950209,661.12,660.59,1.742]
[1751936467270,0.47253392,661.26,660.59,1.742]
[1751936467271,1.6950209,661.11,660.59,1.742]
[1751936467971,1.6950209,661.13,660.59,1.742]
[1751936468171,2.72695273,661.12,660.59,1.742]
[1751936468370,2.72695273,661.11,660.59,1.742]
[1751936468571,2.72695273,661.1,660.59,1.742]
[1751936468771,1.6950209,661.1,660.59,1.742]
[1751936468973,1.6950209,661.11,660.59,1.742]
[1751936470076,1.6950209,661.1,660.59,1.742]
[1751936471277,1.6950209,661.1,660.4,0.26333114]
[1751936471473,3.19948665,661.1,660.4,0.26333114]
[1751936471674,1.6950209,661.1,660.4,0.26333114]
[1751936472773,1.03193183,661.18,660.4,0.26333114]
[1751936472974,1.69104323,661.11,660.4,0.26333114]
[1751936473273,1.03193183,661.1,660.4,0.26333114]
[1751936473978,1.03193183,661.1,660.41,1.781]
[1751936474377,1.03193183,661.09,660.41,1.781]
[1751936474781,1.03193183,661.08,660.41,1.781]
[1751936475977,1.03193183,661.07,660.41,1.781]
[1751936476178,1.69104323,661.05,660.41,1.781]
[1751936476478,1.03193183,661.04,660.41,1.781]
[1751936477580,1.03193183,661.03,660.41,1.781]
[1751936477884,1.03193183,661.04,660.41,1.781]
[1751936478086,1.03193183,661.03,660.41,1.781]
[1751936479885,1.03193183,661.02,660.41,1.781]
[1751936480083,1.03193183,661.03,660.41,1.781]
[1751936480282,1.03193183,661.02,660.41,1.781]
[1751936481387,1.03193183,661.01,660.41,1.781]
[1751936481587,1.69104323,661.03,660.41,1.781]
[1751936481588,1.03193183,661.02,660.41,1.781]
[1751936481783,1.03193183,661.01,660.41,1.781]
[1751936481983,1.03193183,661.02,660.41,1.781]
[1751936482189,2.72297506,661.02,660.41,1.781]
[1751936482389,1.03193183,661.01,660.41,1.781]
[1751936482590,1.03193183,661.02,660.41,1.781]
[1751936482886,1.03193183,661.01,660.41,1.781]
[1751936483086,1.03193183,661.02,660.41,1.781]
[1751936483289,1.03193183,661.01,660.41,1.781]
[1751936483490,1.03193183,661.0,660.41,1.781]
[1751936483689,1.03463134,661.01,660.41,1.781]
[1751936483890,1.03463134,661.0,660.41,1.781]
[1751936484091,1.03463134,661.01,660.41,1.781]
[1751936484288,1.03463134,661.0,660.41,1.781]
[1751936484492,1.03463134,661.01,660.41,1.781]
[1751936484692,1.03463134,661.0,660.41,1.781]
[1751936484889,1.03463134,661.01,660.41,1.781]
[1751936485093,1.03463134,661.0,660.41,1.781]
[1751936485290,1.03463134,660.99,660.41,1.781]
[1751936485494,1.03463134,660.98,660.41,1.781]
[1751936485694,1.03463134,661.01,660.41,1.781]
[1751936485892,1.03463134,661.0,660.41,1.781]
[1751936486195,1.03463134,660.99,660.41,4.02846194]
[1751936486495,1.03463134,660.98,660.41,4.02846194]
[1751936486691,1.03463134,660.97,660.41,4.02846194]
[1751936486892,1.03463134,660.96,660.41,4.02846194]
[1751936487095,1.03463134,661.0,660.41,4.02846194]
[1751936487391,1.03463134,660.99,660.41,4.02846194]
[1751936487595,1.03463134,660.98,660.41,4.02846194]
[1751936487791,1.03463134,660.97,660.43,2.24746194]
[1751936487994,1.03463134,660.96,660.43,2.24746194]
[1751936488192,1.03463134,660.95,660.44,2.24746194]
[1751936488391,1.03463134,660.94,660.44,2.24746194]
[1751936488596,1.03463134,660.93,660.44,2.24746194]
[1751936488796,1.03463134,660.98,660.44,2.24746194]
[1751936489093,1.03463134,660.97,660.44,2.24746194]
[1751936489292,1.03463134,660.96,660.45,2.24746194]
[1751936489496,1.03463134,660.95,660.45,2.24746194]
[1751936489693,1.03463134,660.94,660.45,2.24746194]
[1751936489897,1.03463134,660.93,660.45,2.24746194]
[1751936490197,1.03463134,660.92,660.46,2.24746194]
[1751936490492,1.03463134,660.91,660.46,2.24746194]
[1751936490697,1.03463134,660.96,660.46,2.24746194]
[1751936490897,1.03463134,660.95,660.45,2.24746194]
[1751936491197,1.03463134,660.94,660.45,2.24746194]
[1751936491396,1.03463134,660.93,660.45,2.24746194]
[1751936491595,1.03463134,660.92,660.45,2.24746194]
[1751936491797,1.03463134,660.91,660.44,2.24746194]
[1751936491995,2.72567457,660.97,660.44,2.24746194]
[1751936492195,1.03463134,660.96,660.44,2.24746194]
[1751936492496,1.03463134,660.95,660.42,2.24746194]
[1751936492695,1.03463134,660.94,660.42,2.24746194]
[1751936492898,1.03463134,660.93,660.42,2.24746194]
[1751936493096,1.03463134,660.92,660.42,2.24746194]
[1751936493299,1.03463134,660.91,660.42,2.24746194]
[1751936493496,1.03463134,660.97,660.42,2.24746194]
[1751936493702,1.03463134,660.96,660.42,2.24746194]
[1751936493901,1.03463134,660.95,660.42,2.24746194]
[1751936494097,1.03463134,660.94,660.42,2.24746194]
[1751936494396,1.03463134,660.93,660.42,2.24746194]
[1751936494596,1.03463134,660.92,660.42,2.24746194]
[1751936494799,1.03463134,660.91,660.42,2.24746194]
[1751936494997,1.03463134,660.97,660.42,2.24746194]
[1751936495299,1.03463134,660.96,660.42,2.24746194]
[1751936495597,1.03463134,660.95,660.42,2.24746194]
[1751936495800,1.03463134,660.94,660.42,2.24746194]
[1751936496000,1.03463134,660.93,660.42,2.24746194]
[1751936496301,1.03463134,660.92,660.42,2.24746194]
[1751936496600,1.03463134,660.91,660.42,2.24746194]
[1751936496800,1.03463134,660.97,660.42,2.24746194]
[1751936497000,1.03463134,660.96,660.42,2.24746194]
[1751936497199,1.03463134,660.95,660.41,4.02846194]
[1751936497396,1.03463134,660.94,660.41,1.781]
[1751936497600,1.03463134,660.93,660.41,1.781]
[1751936497795,1.03463134,660.92,660.41,1.781]
[1751936498001,1.03463134,660.98,660.41,1.781]
[1751936498199,1.03463134,660.97,660.41,1.781]
[1751936498402,1.03579986,660.96,660.41,1.781]
[1751936498603,1.03579986,660.95,660.41,1.781]
[1751936498803,1.03579986,660.94,660.41,1.781]
[1751936499005,1.03579986,660.93,660.41,1.781]
[1751936499199,1.03579986,660.98,660.41,1.781]
[1751936499400,1.03579986,660.97,660.41,1.781]
[1751936499702,1.03579986,660.96,660.41,1.781]
[1751936500003,1.03579986,660.95,660.41,1.781]
[1751936500200,1.03579986,660.94,660.41,1.781]
[1751936500404,1.03579986,660.93,660.41,1.781]
[1751936500600,1.03579986,660.92,660.41,1.781]
[1751936500799,1.03579986,660.98,660.41,1.781]
[1751936501105,1.03579986,660.97,660.41,1.781]
[1751936501299,1.03579986,660.96,660.41,1.781]
[1751936501503,1.03579986,660.95,660.41,1.781]
[1751936501799,1.03579986,660.94,660.41,4.02846194]
[1751936502003,1.03579986,660.93,660.41,4.02846194]
[1751936502204,1.03579986,660.92,660.41,4.02846194]
[1751936502401,2.72684309,660.98,660.42,2.24746194]
[1751936502604,1.03579986,660.97,660.42,2.24746194]
[1751936502900,1.0358154,660.96,660.42,2.24746194]
[1751936503104,1.0358154,660.95,660.42,2.24746194]
[1751936503301,1.0358154,660.94,660.43,2.24746194]
[1751936503505,1.0358154,660.93,660.43,2.24746194]
[1751936503704,1.0358154,660.92,660.43,2.24746194]
[1751936503900,1.0358154,660.91,660.43,2.24746194]
[1751936504104,1.0358154,660.97,660.43,2.24746194]
[1751936504303,1.0358154,660.96,660.43,2.24746194]
[1751936504600,1.0358154,660.95,660.43,2.24746194]
[1751936504803,1.0358154,660.94,660.43,2.24746194]
[1751936505100,1.0358154,660.93,660.42,2.24746194]
[1751936505304,1.0358154,660.92,660.43,2.24746194]
[1751936505505,1.0358154,660.91,660.43,2.24746194]
[1751936505800,2.72685863,660.97,660.43,2.24746194]
[1751936506104,1.69104323,660.93,660.41,1.781]
[1751936506401,1.0358154,660.92,660.41,1.781]
[1751936506603,1.0358154,660.91,660.41,1.781]
[1751936506904,1.0358154,660.9,660.41,1.781]
[1751936507104,1.69104323,660.93,660.41,1.781]
[1751936507105,1.0358154,660.89,660.41,1.781]
[1751936507303,1.0358154,660.88,660.41,1.781]
[1751936507506,1.0358154,660.87,660.41,1.781]
[1751936507707,1.0358154,660.86,660.41,1.781]
[1751936507903,1.0358154,660.92,660.41,1.781]
[1751936508204,1.0358154,660.91,660.41,1.781]
[1751936508403,1.0358154,660.9,660.41,1.781]
[1751936508607,1.0358154,660.89,660.41,1.781]
[1751936508904,1.0358154,660.88,660.41,1.781]
[1751936509105,1.0358154,660.87,660.41,1.781]
[1751936509402,1.0358154,660.86,660.41,1.781]
[1751936509604,1.0358154,660.91,660.41,1.781]
[1751936509802,1.0358154,660.9,660.41,1.781]
[1751936510003,1.0358154,660.89,660.41,1.781]
[1751936510203,1.0358154,660.88,660.41,1.781]
[1751936510403,1.0358154,660.87,660.41,1.781]
[1751936510603,1.0358154,660.86,660.41,1.781]
[1751936510808,1.0358154,660.91,660.41,1.781]
[1751936511002,1.0358154,660.9,660.41,1.781]
[1751936511205,1.0358154,660.89,660.41,1.781]
[1751936511403,1.69104323,660.92,660.41,1.781]
[1751936511404,1.0358154,660.88,660.41,1.781]
[1751936511606,1.0358154,660.87,660.41,1.781]
[1751936511807,1.0358154,660.91,660.41,1.781]
[1751936512009,1.0358154,660.9,660.41,1.781]
[1751936512205,1.0358154,660.89,660.41,1.781]
[1751936512509,1.28203905,661.04,660.41,1.781]
[1751936512510,1.69104323,660.98,660.41,1.781]
[1751936512711,1.69104323,660.93,660.41,1.781]
[1751936512908,1.0358154,660.92,660.41,1.781]
[1751936513105,1.03481122,660.91,660.41,1.781]
[1751936513306,1.03481122,660.9,660.41,1.781]
[1751936513509,1.03481122,660.93,660.41,1.781]
[1751936513707,1.03481122,660.92,660.41,1.781]
[1751936513909,1.03481122,660.91,660.41,1.781]
[1751936514110,2.72585445,660.93,660.41,1.781]
[1751936514413,1.03481122,660.92,660.41,1.781]
[1751936514607,1.03481122,660.91,660.41,1.781]
[1751936514811,1.03481122,660.93,660.41,1.781]
[1751936515012,1.03481122,660.92,660.41,1.781]
[1751936515312,1.03481122,660.93,660.41,1.781]
[1751936515512,1.03481122,660.92,660.41,1.781]
[1751936515811,1.03481122,660.91,660.41,1.781]
[1751936516008,1.03481122,660.93,660.41,1.781]
[1751936516208,1.03481122,660.92,660.41,1.781]
[1751936516512,1.03481122,660.93,660.41,1.781]
[1751936516707,1.03481122,660.92,660.41,1.781]
[1751936516908,1.03481122,660.93,660.41,1.781]
[1751936517209,1.03481122,660.94,660.41,1.781]
[1751936517410,1.03481122,660.93,660.41,1.781]
[1751936517611,1.69104323,660.89,660.41,1.781]
[1751936517807,1.03481122,660.88,660.41,1.781]
[1751936518008,1.03481122,660.87,660.41,1.781]
[1751936518210,1.03481122,660.88,660.41,1.781]
[1751936518408,1.03481122,660.87,660.41,1.781]
[1751936518614,1.03481122,660.88,660.41,1.781]
[1751936518808,1.03364801,660.87,660.41,1.781]
[1751936519012,1.03364801,660.88,660.41,1.781]
[1751936519909,1.03364801,660.88,660.16,0.26341386]
[1751936520210,1.69104323,660.86,660.16,0.26341386]
[1751936520413,1.03364801,660.85,660.19,2.24746194]
[1751936520713,1.69104323,660.87,660.16,2.5108758]
[1751936520913,1.69104323,660.8,660.16,0.26341386]
[1751936521113,1.03364801,660.79,660.16,0.26341386]
[1751936521408,1.69104323,660.8,660.16,0.26341386]
[1751936521712,1.69104323,660.81,660.16,0.26341386]
[1751936522510,1.69104323,660.82,660.17,1.591]
[1751936523415,1.69104323,660.83,660.17,1.591]
[1751936524714,3.19599573,660.83,660.17,1.591]
[1751936524918,1.69104323,660.83,660.17,1.591]
[1751936525416,1.69104323,660.84,660.17,1.591]
[1751936525820,1.68804213,660.84,660.17,1.591]
[1751936527421,2.71951519,660.84,660.17,1.591]
[1751936527618,1.68804213,660.84,660.17,1.591]
[1751936529621,2.71951519,660.84,660.17,1.591]
[1751936529824,1.68804213,660.84,660.17,1.591]
[1751936530121,1.68804213,660.85,660.17,1.591]
[1751936530321,1.03147306,660.84,660.17,1.591]
[1751936530624,1.03147306,660.83,660.17,1.591]
[1751936531224,1.03147306,660.82,660.17,1.591]
[1751936531423,1.03147306,660.83,660.17,1.591]
[1751936531925,1.03147306,660.82,660.17,1.591]
[1751936532220,1.03147306,660.81,660.17,1.591]
[1751936532424,1.03147306,660.8,660.17,1.591]
[1751936532621,2.71951519,660.82,660.17,1.591]
[1751936532921,1.03147306,660.81,660.17,1.591]
[1751936533126,1.03147306,660.8,660.17,1.591]
[1751936533321,1.03147306,660.81,660.17,1.591]
[1751936533526,1.03147306,660.8,660.17,1.591]
[1751936533730,1.03147306,660.81,660.17,1.591]
[1751936533928,1.03147306,660.8,660.17,1.591]
[1751936534124,1.03147306,660.81,660.17,1.591]
[1751936534324,1.68804213,660.76,660.17,1.591]
[1751936534627,1.03147306,660.75,660.17,1.591]
[1751936534823,1.03147306,660.74,660.17,1.591]
[1751936535022,1.03147306,660.73,660.17,1.591]
[1751936535224,1.03147306,660.72,660.17,1.591]
[1751936535527,1.03147306,660.75,660.17,1.591]
[1751936535727,1.68804213,660.76,660.17,1.591]
[1751936535728,1.03147306,660.74,660.17,1.591]
[1751936536026,1.03147306,660.73,660.17,1.591]
[1751936536225,1.03147306,660.72,660.17,1.591]
[1751936536525,1.03147306,660.75,660.17,1.591]
[1751936536729,1.03147306,660.74,660.17,1.591]
[1751936536927,1.03147306,660.73,660.17,1.591]
[1751936537224,1.03147306,660.72,660.17,1.591]
[1751936537428,1.03147306,660.71,660.17,1.591]
[1751936537628,1.03147306,660.75,660.17,1.591]
[1751936537829,1.03147306,660.74,660.17,1.591]
[1751936538029,1.03147306,660.79,660.17,1.591]
[1751936538229,1.03147306,660.78,660.17,1.591]
[1751936538426,1.03147306,660.77,660.17,1.591]
[1751936538626,1.03147306,660.76,660.17,1.591]
[1751936539124,1.68804213,660.8,660.17,1.591]
[1751936540425,1.68804213,660.81,660.17,1.591]
[1751936547732,1.68804213,660.78,660.17,1.591]
[1751936548332,1.68804213,660.79,660.17,1.591]
[1751936548529,1.68804213,660.78,660.17,1.591]
[1751936549227,1.68804213,660.77,660.17,1.591]
[1751936549431,1.68804213,660.76,660.17,1.591]
[1751936549731,1.02945018,660.75,660.17,1.591]
[1751936549933,1.02945018,660.74,660.17,1.591]
[1751936550132,1.02945018,660.73,660.17,1.591]
[1751936550333,1.02945018,660.72,660.17,1.591]
[1751936550533,1.02945018,660.71,660.02,0.2634707]
[1751936550833,1.02945018,660.7,660.02,0.2634707]
[1751936551033,1.02945018,660.69,660.02,0.2634707]
[1751936551233,1.02945018,660.68,660.02,0.2634707]
[1751936551435,1.02945018,660.77,660.02,0.2634707]
[1751936551634,1.02945018,660.76,660.02,0.2634707]
[1751936551832,1.02945018,660.75,660.02,0.2634707]
[1751936552031,1.02945018,660.74,660.02,0.2634707]
[1751936552235,1.02945018,660.73,660.02,0.2634707]
[1751936552436,1.02945018,660.72,660.02,0.2634707]
[1751936552732,1.02945018,660.71,660.02,0.2634707]
[1751936552932,1.02945018,660.7,660.02,0.2634707]
[1751936553133,1.02945018,660.69,660.02,0.2634707]
[1751936553334,1.02945018,660.76,660.02,0.2634707]
[1751936553633,0.46996038,660.9,660.02,0.2634707]
[1751936553634,1.02945018,660.75,660.02,0.2634707]
[1751936553832,1.02945018,660.74,660.02,0.2634707]
[1751936554031,1.02945018,660.73,660.02,0.2634707]
[1751936554232,1.02945018,660.72,660.03,1.356]
[1751936554437,1.02945018,660.71,660.03,1.356]
[1751936554636,1.02945018,660.7,660.03,1.356]
[1751936554834,1.02945018,660.69,660.03,1.356]
[1751936555032,1.02945018,660.76,660.03,1.356]
[1751936555232,1.02945018,660.75,660.03,1.356]
[1751936555434,1.02945018,660.74,660.03,1.356]
[1751936555636,1.02945018,660.73,660.03,1.356]
[1751936555933,1.02973931,660.72,660.03,1.356]
[1751936556133,1.02973931,660.71,660.03,1.356]
[1751936556436,1.02973931,660.7,660.03,1.356]
[1751936556638,1.02982533,660.69,660.03,1.356]
[1751936556836,1.02982533,660.68,660.03,1.356]
[1751936557033,1.02982533,660.75,660.03,1.356]
[1751936557235,1.02982533,660.74,660.03,1.356]
[1751936557438,1.02982533,660.73,660.03,1.356]
[1751936557636,1.02982533,660.72,660.03,1.356]
[1751936557838,1.02982533,660.71,660.03,1.356]
[1751936558037,1.02982533,660.7,660.03,1.356]
[1751936558235,1.02982533,660.69,660.03,1.356]
[1751936558440,1.02982533,660.68,660.03,1.356]
[1751936558737,1.02982533,660.67,660.03,1.356]
[1751936558936,1.02982533,660.73,660.03,1.356]
[1751936559140,1.02982533,660.72,660.03,1.356]
[1751936559435,1.02982533,660.71,660.03,1.356]
[1751936559739,1.02982533,660.7,660.03,1.356]
[1751936559934,1.02982533,660.69,660.03,1.356]
[1751936560138,1.02982533,660.68,660.03,1.356]
[1751936560338,1.02982533,660.73,660.03,1.356]
[1751936560539,1.02982533,660.72,660.03,1.356]
[1751936560838,1.02982533,660.71,660.03,1.356]
[1751936561036,1.02982533,660.7,660.03,1.356]
[1751936561236,1.02982533,660.69,660.03,1.356]
[1751936561435,2.71786746,660.74,660.03,1.356]
[1751936561636,1.02982533,660.73,660.03,1.356]
[1751936561940,1.02982533,660.72,660.03,1.356]
[1751936562140,1.02982533,660.71,660.03,1.356]
[1751936562440,1.02982533,660.7,660.03,1.356]
[1751936562638,1.02982533,660.73,660.03,1.356]
[1751936562938,1.02982533,660.72,660.03,1.356]
[1751936563142,1.02982533,660.71,660.03,1.356]
[1751936563440,1.68804213,660.74,660.03,1.356]
[1751936563441,1.02982533,660.73,660.03,1.356]
[1751936563641,1.02982533,660.72,660.03,1.356]
[1751936563943,1.02982533,660.73,660.03,1.356]
[1751936564240,1.68804213,660.75,660.03,1.356]
[1751936564241,1.02982533,660.74,660.03,1.356]
[1751936564441,1.02982533,660.73,660.03,1.356]
[1751936564637,1.02982533,660.74,660.03,1.356]
[1751936564838,1.02982533,660.73,660.03,1.356]
[1751936565040,1.02982533,660.74,660.03,1.356]
[1751936565443,2.71786746,660.74,660.03,1.356]
[1751936565640,1.68804213,660.74,660.03,1.356]
[1751936566343,3.18884231,660.74,660.03,1.356]
[1751936566539,1.68804213,660.74,660.03,1.356]
[1751936568741,1.68804213,660.75,660.03,1.356]
[1751936570246,1.68804213,660.74,660.03,1.356]
[1751936571243,1.68804213,660.74,660.02,0.2634707]
[1751936571447,1.68804213,660.73,660.02,0.2634707]
[1751936571644,1.68804213,660.72,660.02,0.2634707]
[1751936572344,2.72072881,660.72,660.02,0.2634707]
[1751936572548,1.68804213,660.72,660.02,0.2634707]
[1751936573850,1.03268668,660.71,660.02,0.2634707]
[1751936574146,1.03268668,660.7,660.02,0.2634707]
[1751936574645,1.03268668,660.7,660.03,1.383]
[1751936574950,1.03325543,660.7,660.03,1.383]
[1751936575150,1.03325543,660.69,660.03,1.383]
[1751936575347,2.72129756,660.7,660.03,1.383]
[1751936575547,1.03325543,660.69,660.03,1.383]
[1751936576049,1.03325543,660.68,660.03,1.383]
[1751936576247,1.03325543,660.67,660.03,1.383]
[1751936576451,2.72129756,660.69,660.03,1.383]
[1751936576652,1.03325543,660.68,660.03,1.383]
[1751936576850,1.03325543,660.67,660.03,1.383]
[1751936577053,1.03325543,660.68,660.03,1.383]
[1751936577248,1.03325543,660.67,660.03,1.383]
[1751936577452,1.03325543,660.66,660.03,1.383]
[1751936577652,1.03325543,660.68,660.03,1.383]
[1751936577856,1.03325543,660.67,660.03,1.383]
[1751936578052,1.03325543,660.66,660.03,1.383]
[1751936578252,1.03325543,660.65,660.03,1.383]
[1751936578557,1.03325543,660.64,660.03,3.63046194]
[1751936578756,1.03325543,660.63,660.04,2.24746194]
[1751936578953,1.03325543,660.65,660.04,2.24746194]
[1751936579153,1.03325543,660.64,660.04,2.24746194]
[1751936579359,1.03325543,660.63,660.03,3.63046194]
[1751936579654,1.03325543,660.65,660.03,3.63046194]
[1751936579958,1.03325543,660.64,660.03,3.63046194]
[1751936580158,1.03325543,660.63,660.03,3.63046194]
[1751936580459,1.03325543,660.65,660.03,3.63046194]